bitfinex/quotes_BTCUSD_20250221
["timestamp","ask_amount","ask_price","bid_price","bid_amount"]
[1740168062071,0.0001305,95484.0,95481.0,0.10264569]
[1740168063154,0.0001305,95484.0,95481.0,0.10964569]
[1740168063560,0.0001305,95484.0,95482.0,0.00125663]
[1740168063732,0.0001305,95484.0,95483.0,0.41099818]
[1740168064114,0.0001305,95484.0,95483.0,0.25264569]
[1740168064395,0.0001305,95484.0,95483.0,0.95274169]
[1740168064568,0.0001305,95484.0,95483.0,0.98728254]
[1740168064886,0.0001305,95484.0,95483.0,0.96728254]
[1740168065123,0.0011305,95484.0,95483.0,0.80264569]
[1740168065294,0.0011305,95484.0,95483.0,0.79564569]
[1740168065626,0.0011305,95484.0,95483.0,0.95274169]
[1740168065845,0.0019813,95484.0,95483.0,0.95274169]
[1740168066057,0.0019813,95484.0,95483.0,0.79564569]
[1740168066268,0.0019813,95484.0,95441.0,0.3214]
[1740168066471,0.1590753,95484.0,95483.0,0.007]
[1740168066644,0.0029813,95484.0,95483.0,0.014]
[1740168066889,0.0019813,95484.0,95483.0,0.007]
[1740168067166,0.00088894,95484.0,95483.0,0.007]
[1740168067370,0.00188894,95484.0,95483.0,0.007]
[1740168067569,0.00188894,95484.0,95471.0,0.15125674]
[1740168067793,0.00188894,95484.0,95483.0,0.002]
[1740168068054,0.00088894,95484.0,95483.0,0.10464569]
[1740168068263,0.00088894,95484.0,95483.0,0.26164569]
[1740168068548,0.00088894,95484.0,95483.0,0.26364569]
[1740168068797,0.00088894,95484.0,95483.0,0.25664569]
[1740168069002,0.00088894,95484.0,95483.0,0.10664569]
[1740168069205,0.00088894,95484.0,95483.0,0.011]
[1740168069533,0.00088894,95484.0,95483.0,0.10264569]
[1740168069732,0.157108,95476.0,95441.0,0.3214]
[1740168069967,0.15798294,95484.0,95483.0,0.011]
[1740168070135,0.00088894,95484.0,95483.0,0.011]
[1740168070543,0.00873681,95484.0,95483.0,0.011]
[1740168070845,0.00873681,95484.0,95483.0,0.007]
[1740168071061,0.00088894,95484.0,95483.0,0.11464569]
[1740168071262,1.03508029,95493.0,95484.0,0.00011106]
[1740168071468,1.03508029,95493.0,95485.0,0.10264569]
[1740168072382,1.03508029,95493.0,95484.0,0.00011106]
[1740168072832,1.03508029,95493.0,95485.0,0.10264569]
[1740168073028,1.03508029,95493.0,95485.0,0.10664569]
[1740168073235,1.03508029,95493.0,95485.0,0.10764569]
[1740168073463,1.03508029,95493.0,95485.0,0.10664569]
[1740168074276,1.03508029,95493.0,95485.0,0.10764569]
[1740168074649,1.03508029,95493.0,95485.0,0.10364569]
[1740168074970,1.03608029,95493.0,95485.0,0.10364569]
[1740168075251,0.31208669,95492.0,95485.0,0.001]
[1740168075388,0.15709,95487.0,95485.0,0.001]
[1740168075767,0.15709,95487.0,95485.0,0.004]
[1740168075973,1.03608029,95493.0,95485.0,0.004]
[1740168076173,1.03608029,95493.0,95485.0,0.001]
[1740168076374,1.03608029,95493.0,95484.0,0.00011106]
[1740168076375,1.03508029,95493.0,95486.0,0.10390237]
[1740168076602,1.03508029,95493.0,95486.0,0.10264569]
[1740168077005,1.03508029,95493.0,95487.0,0.15]
[1740168077269,1.03508029,95493.0,95489.0,0.15]
[1740168077439,1.03508029,95493.0,95490.0,0.10264569]
[1740168079078,1.03508029,95493.0,95490.0,0.10864569]
[1740168079489,0.157081,95492.0,95490.0,0.006]
[1740168079700,1.03508029,95493.0,95484.0,0.00011106]
[1740168079906,1.03508029,95493.0,95490.0,0.004]
[1740168080101,1.03508029,95493.0,95491.0,0.10264569]
[1740168080518,1.03508029,95493.0,95490.0,0.005]
[1740168080519,0.157082,95491.0,95490.0,0.005]
[1740168080735,0.157082,95491.0,95490.0,0.01]
[1740168080917,0.157082,95491.0,95490.0,0.004]
[1740168081128,0.157082,95491.0,95484.0,0.00011106]
[1740168081129,0.157092,95485.0,95484.0,0.00011106]
[1740168081343,0.52586942,95485.0,95484.0,0.00011106]
[1740168081494,0.6504983,95485.0,95484.0,0.00011106]
[1740168081905,0.66503915,95485.0,95484.0,0.00011106]
[1740168082928,0.76768484,95485.0,95484.0,0.00311106]
[1740168083369,0.76768484,95485.0,95484.0,0.00411106]
[1740168084180,0.76768484,95485.0,95478.0,0.0017014]
[1740168084181,0.157102,95479.0,95478.0,0.0017014]
[1740168084462,2.25830228,95479.0,95444.0,0.3214]
[1740168084671,0.0798,95450.0,95444.0,0.0001305]
[1740168084886,0.31493099,95445.0,95444.0,0.0001305]
[1740168085090,1.76475016,95445.0,95444.0,0.0001305]
[1740168085620,0.30717,95438.0,95400.0,0.1085]
[1740168085919,1.52866956,95438.0,95437.0,0.00183196]
[1740168086133,1.53826956,95438.0,95437.0,0.00183196]
[1740168086335,0.157212,95413.0,95400.0,0.1085]
[1740168086541,0.0473,95411.0,95401.0,0.05240934]
[1740168087355,0.204515,95411.0,95401.0,0.05240934]
[1740168087941,0.0473,95411.0,95401.0,0.05240934]
[1740168088205,0.157219,95409.0,95401.0,0.05240934]
[1740168088414,0.0473,95411.0,95401.0,0.05240934]
[1740168088839,0.0483,95411.0,95401.0,0.05940934]
[1740168089052,0.157227,95403.0,95401.0,0.05940934]
[1740168089255,1.19230829,95403.0,95401.0,0.05240934]
[1740168089649,1.03508029,95403.0,95401.0,0.06540934]
[1740168089858,1.19230929,95403.0,95401.0,0.06540934]
[1740168089980,1.19230929,95403.0,95401.0,0.06711074]
[1740168090184,1.19230929,95403.0,95401.0,0.06111074]
[1740168090383,0.00157233,95402.0,95401.0,0.06111074]
[1740168090633,1.55981719,95403.0,95401.0,0.06111074]
[1740168090784,1.55981719,95403.0,95401.0,0.05511074]
[1740168091174,1.56081719,95403.0,95401.0,0.06111074]
[1740168091733,1.55981719,95403.0,95401.0,0.05411074]
[1740168092362,1.55981719,95403.0,95401.0,0.05511074]
[1740168092564,1.40258819,95403.0,95401.0,0.05411074]
[1740168092769,1.03508029,95403.0,95401.0,0.05411074]
[1740168092966,1.03608029,95403.0,95401.0,0.05411074]
[1740168093174,0.157229,95402.0,95401.0,0.05411074]
[1740168093750,1.19230829,95403.0,95401.0,0.05411074]
[1740168093932,0.00157238,95402.0,95401.0,0.05411074]
[1740168094131,0.00157247,95402.0,95401.0,0.05411074]
[1740168094577,0.076,95402.0,95401.0,0.05411074]
[1740168094982,0.08398729,95402.0,95401.0,0.05411074]
[1740168095189,0.076,95402.0,95401.0,0.05411074]
[1740168095564,1.03508029,95403.0,95401.0,0.05411074]
[1740168096146,0.001,95402.0,95401.0,0.05511074]
[1740168096573,0.076,95415.0,95401.0,0.15675643]
[1740168096792,0.0453,95428.0,95403.0,0.149]
[1740168096981,0.0453,95428.0,95404.0,0.42530317]
[1740168097160,0.09108529,95439.0,95410.0,0.25308974]
[1740168097375,0.09108529,95439.0,95411.0,0.42404569]
[1740168097648,0.0761,95446.0,95411.0,0.42404569]
[1740168097649,0.09108529,95418.0,95411.0,0.42404569]
[1740168098642,0.09108529,95418.0,95411.0,0.43404569]
[1740168098853,0.09108529,95418.0,95417.0,0.15]
[1740168099054,0.09108529,95418.0,95417.0,0.25264569]
[1740168099433,0.09108529,95418.0,95417.0,0.40984969]
[1740168099631,0.09108529,95418.0,95417.0,0.73124969]
[1740168100216,0.09308529,95418.0,95417.0,0.74524969]
[1740168100416,0.09308529,95418.0,95417.0,0.75979054]
[1740168100665,0.001,95418.0,95417.0,0.73824969]
[1740168101040,0.002,95418.0,95417.0,0.74524969]
[1740168101441,0.002,95418.0,95417.0,0.75979054]
[1740168102052,0.002,95418.0,95417.0,1.34279054]
[1740168102252,0.0008511,95437.0,95436.0,0.307173]
[1740168102499,0.0008511,95437.0,95436.0,0.74575954]
[1740168102686,0.0008511,95437.0,95436.0,0.74475954]
[1740168103056,0.0008511,95437.0,95436.0,1.28775954]
[1740168103558,0.0008511,95437.0,95436.0,1.27421869]
[1740168103844,0.0008511,95437.0,95436.0,1.28875954]
[1740168104310,0.0018511,95437.0,95436.0,1.30275954]
[1740168104505,0.0018511,95437.0,95436.0,1.29575954]
[1740168104918,0.0018511,95437.0,95436.0,1.28121869]
[1740168105096,0.0018511,95437.0,95436.0,1.12404569]
[1740168105341,0.0018511,95437.0,95436.0,1.28121869]
[1740168105545,0.0018511,95437.0,95436.0,1.11704569]
[1740168105546,0.0008511,95437.0,95436.0,1.11704569]
[1740168105749,0.0008511,95437.0,95436.0,1.13104569]
[1740168106039,0.0008511,95437.0,95436.0,0.43804569]
[1740168106202,0.0008511,95437.0,95436.0,0.10264569]
[1740168106405,0.0008511,95437.0,95436.0,0.007]
[1740168107369,0.0008511,95437.0,95422.0,0.15]
[1740168107592,0.0008511,95437.0,95436.0,0.004]
[1740168107798,0.0008511,95437.0,95436.0,0.10664569]
[1740168108012,0.0789,95462.0,95438.0,0.15]
[1740168108192,1.03508029,95469.0,95451.0,0.15]
[1740168108392,0.00013041,95462.0,95453.0,0.15]
[1740168108619,0.00013041,95462.0,95455.0,0.15]
[1740168108731,0.00013041,95462.0,95456.0,0.10390259]
[1740168108968,0.00013041,95462.0,95457.0,0.15]
[1740168109169,0.00013041,95462.0,95458.0,0.10390254]
[1740168109417,0.00013041,95462.0,95461.0,0.10264569]
[1740168109639,0.00013041,95462.0,95461.0,0.41103441]
[1740168109843,0.00013041,95462.0,95461.0,0.25264569]
[1740168110067,0.00013041,95462.0,95461.0,0.10264569]
[1740168110801,0.00013041,95462.0,95461.0,0.10964569]
[1740168111045,0.00013041,95462.0,95461.0,0.10264569]
[1740168111543,0.00013041,95462.0,95461.0,0.10864569]
[1740168111989,0.00013041,95462.0,95461.0,0.26564569]
[1740168112464,0.00013041,95462.0,95461.0,0.11564569]
[1740168112681,0.00013041,95462.0,95461.0,0.10264569]
[1740168112915,0.00013041,95462.0,95461.0,0.10964569]
[1740168113140,0.00013041,95462.0,95461.0,0.013]
[1740168113380,0.00013041,95462.0,95452.0,0.15]
[1740168113619,0.00013041,95462.0,95461.0,0.003]
[1740168113850,0.00013041,95462.0,95454.0,0.15]
[1740168114080,0.00098141,95462.0,95455.0,0.10264569]
[1740168114315,0.00098141,95462.0,95461.0,0.006]
[1740168114551,0.00098141,95462.0,95461.0,0.10264569]
[1740168114979,0.00098141,95462.0,95442.0,0.15]
[1740168115189,0.00098141,95462.0,95461.0,0.006]
[1740168115599,0.00098141,95462.0,95444.0,0.15]
[1740168115805,0.00098141,95462.0,95445.0,0.10264569]
[1740168116018,0.00098141,95462.0,95461.0,0.013]
[1740168116209,0.00098141,95462.0,95461.0,0.007]
[1740168116585,0.00098141,95462.0,95461.0,0.003]
[1740168116745,0.00098141,95462.0,95445.0,0.10264569]
[1740168116950,1.0360617,95462.0,95445.0,0.10264569]
[1740168117165,0.083,95461.0,95445.0,0.10864569]
[1740168117340,0.00157133,95460.0,95445.0,0.006]
[1740168117748,0.083,95461.0,95444.0,0.006]
[1740168117955,0.083,95461.0,95444.0,0.10864569]
[1740168118158,0.083,95461.0,95444.0,0.10264569]
[1740168119004,0.083,95461.0,95431.0,0.15]
[1740168119158,0.0015715,95460.0,95432.0,0.10264569]
[1740168119377,0.084,95461.0,95432.0,0.10264569]
[1740168119583,0.084,95461.0,95440.0,0.25308974]
[1740168119888,0.084,95461.0,95441.0,0.10390284]
[1740168120090,0.083,95461.0,95441.0,0.10390284]
[1740168120291,0.083,95461.0,95441.0,0.10264569]
[1740168120499,0.001,95460.0,95441.0,0.10264569]
[1740168120714,0.001,95460.0,95411.0,0.01]
[1740168120715,0.0489,95454.0,95414.0,0.3214]
[1740168120931,0.0761,95446.0,95441.0,0.001]
[1740168121191,0.157163,95442.0,95441.0,0.001]
[1740168121575,1.11118029,95446.0,95441.0,0.001]
[1740168121774,1.11118029,95446.0,95442.0,0.10264569]
[1740168121954,1.03508029,95446.0,95442.0,0.10264569]
[1740168122557,1.03508029,95446.0,95442.0,0.10064569]
[1740168123407,0.0761,95455.0,95442.0,0.10464569]
[1740168123621,0.0761,95455.0,95444.0,0.25308974]
[1740168123819,1.03508029,95458.0,95445.0,0.10264569]
[1740168124250,1.03508029,95458.0,95446.0,0.15125708]
[1740168124472,1.03508029,95458.0,95448.0,0.15]
[1740168124687,0.0787,95468.0,95448.0,0.15]
[1740168124688,0.0787,95468.0,95449.0,0.10264569]
[1740168125560,0.157125,95465.0,95449.0,0.10264569]
[1740168125755,0.00157123,95467.0,95449.0,0.10264569]
[1740168125990,0.0787,95468.0,95449.0,0.10264569]
[1740168126193,0.0787,95468.0,95449.0,0.10764569]
[1740168126614,0.0787,95468.0,95449.0,0.10464569]
[1740168126839,0.0787,95468.0,95449.0,0.10264569]
[1740168127006,0.0787,95468.0,95452.0,0.25308974]
[1740168127212,0.0787,95468.0,95453.0,0.10390265]
[1740168127431,0.0787,95468.0,95453.0,0.10264569]
[1740168127737,1.03508029,95469.0,95453.0,0.10264569]
[1740168128088,0.04688952,95462.0,95449.0,0.005]
[1740168128294,0.00157145,95461.0,95450.0,0.10264569]
[1740168128521,0.00098141,95462.0,95431.0,0.3214]
[1740168128723,0.15714,95456.0,95453.0,0.006]
[1740168128926,0.15871451,95455.0,95453.0,0.006]
[1740168129129,0.0795,95454.0,95453.0,0.006]
[1740168129298,0.0795,95454.0,95450.0,0.001]
[1740168129643,0.36828131,95462.0,95450.0,0.001]
[1740168129644,0.00098141,95462.0,95451.0,0.10264569]
[1740168130022,0.00098141,95462.0,95453.0,0.003]
[1740168130221,0.00098141,95462.0,95454.0,0.10264569]
[1740168130602,0.00098141,95462.0,95455.0,0.15]
[1740168130802,0.00098141,95462.0,95457.0,0.15]
[1740168131047,0.00098141,95462.0,95458.0,0.10264569]
[1740168132864,0.00098141,95462.0,95458.0,0.10764569]
[1740168133995,0.00098141,95462.0,95458.0,0.10564569]
[1740168134431,0.00098141,95462.0,95460.0,0.10264569]
[1740168134640,0.00098141,95462.0,95461.0,0.83495127]
[1740168134841,0.00098141,95462.0,95461.0,1.41249212]
[1740168135271,0.00098141,95462.0,95461.0,1.39249212]
[1740168135410,0.00098141,95462.0,95461.0,1.21536012]
[1740168135621,0.00098141,95462.0,95461.0,0.57404569]
[1740168135816,0.00098141,95462.0,95461.0,0.74571854]
[1740168136640,0.00098141,95462.0,95461.0,0.75271854]
[1740168137019,0.00098141,95462.0,95461.0,0.74571854]
[1740168137263,0.00098141,95462.0,95461.0,0.75971854]
[1740168137670,0.00098141,95462.0,95461.0,1.34271854]
[1740168137873,0.00098141,95462.0,95461.0,1.33571854]
[1740168138074,0.00098141,95462.0,95461.0,1.34691354]
[1740168138733,0.00098141,95462.0,95461.0,1.33991354]
[1740168138946,0.00098141,95462.0,95461.0,1.31571854]
[1740168139345,0.00098141,95462.0,95461.0,1.32271854]
[1740168139553,0.01271518,95513.0,95465.0,0.02]
[1740168139782,0.00013053,95506.0,95480.0,0.15]
[1740168139991,0.00013053,95506.0,95481.0,0.10264569]
[1740168140260,0.08377358,95502.0,95481.0,0.10264569]
[1740168140461,1.11885387,95502.0,95481.0,0.10264569]
[1740168140665,0.15707,95499.0,95481.0,0.10264569]
[1740168140837,0.0015708,95498.0,95481.0,0.10264569]
[1740168141094,1.11885387,95502.0,95481.0,0.10264569]
[1740168141299,0.157066,95501.0,95481.0,0.10364569]
[1740168141501,0.157068,95500.0,95481.0,0.10364569]
[1740168141675,1.03508029,95502.0,95481.0,0.10264569]
[1740168141879,0.157069,95499.0,95481.0,0.10264569]
[1740168142084,0.157069,95499.0,95481.0,0.10564569]
[1740168142330,0.0015708,95498.0,95481.0,0.10564569]
[1740168142501,0.157074,95496.0,95481.0,0.10564569]
[1740168142710,0.0452,95496.0,95481.0,0.10564569]
[1740168142885,0.15864685,95495.0,95481.0,0.10564569]
[1740168143092,0.0452,95496.0,95481.0,0.10564569]
[1740168143093,0.08377358,95490.0,95481.0,0.004]
[1740168143313,0.08377358,95490.0,95437.0,0.543]
[1740168143314,0.15,95481.0,95438.0,0.3214]
[1740168143481,0.0759,95464.0,95439.0,0.10264569]
[1740168143700,0.0759,95464.0,95436.0,0.001702]
[1740168143701,0.00802673,95459.0,95436.0,0.001702]
[1740168143892,0.00802673,95459.0,95437.0,0.10264569]
[1740168143893,0.209528,95453.0,95437.0,0.10264569]
[1740168144325,0.157145,95454.0,95437.0,0.10264569]
[1740168144663,0.00802673,95459.0,95440.0,0.25308974]
[1740168144782,0.16516273,95459.0,95441.0,0.10264569]
[1740168144989,0.00802673,95459.0,95441.0,0.10264569]
[1740168145187,0.157141,95456.0,95441.0,0.10264569]
[1740168145384,0.157142,95455.0,95441.0,0.10264569]
[1740168145583,0.00802673,95459.0,95441.0,0.10264569]
[1740168146012,0.157137,95458.0,95441.0,0.10264569]
[1740168146208,0.00802673,95459.0,95441.0,0.10264569]
[1740168146414,0.157144,95454.0,95441.0,0.10264569]
[1740168146617,0.157163,95442.0,95441.0,0.008]
[1740168146816,0.157163,95442.0,95441.0,0.005]
[1740168147035,1.03508029,95443.0,95440.0,0.00013041]
[1740168147248,1.03508029,95443.0,95441.0,0.002]
[1740168147567,1.03508029,95443.0,95442.0,0.10264569]
[1740168148205,1.03508029,95468.0,95442.0,0.10264569]
[1740168148417,1.03508029,95473.0,95455.0,0.15]
[1740168148617,1.03508029,95473.0,95457.0,0.15]
[1740168148869,1.03508029,95473.0,95459.0,0.15]
[1740168149045,1.03508029,95473.0,95460.0,0.10264569]
[1740168149222,0.001,95464.0,95460.0,0.10264569]
[1740168149637,1.03508029,95473.0,95460.0,0.10264569]
[1740168150491,1.03508029,95473.0,95460.0,0.10564569]
[1740168150693,1.03508029,95473.0,95460.0,0.11290264]
[1740168150927,0.0008502,95462.0,95460.0,0.11164569]
[1740168151081,0.0008502,95462.0,95460.0,0.10564569]
[1740168151667,0.0008502,95462.0,95461.0,0.15125689]
[1740168151909,0.0008502,95462.0,95461.0,0.25390258]
[1740168152116,0.0008502,95462.0,95461.0,0.25264569]
[1740168152912,0.0008502,95462.0,95461.0,0.25664569]
[1740168153244,0.0008502,95462.0,95461.0,0.25264569]
[1740168153437,0.0008502,95462.0,95461.0,0.25964569]
[1740168153642,0.0008502,95462.0,95461.0,0.26664569]
[1740168154227,0.0008502,95462.0,95461.0,0.10964569]
[1740168154427,0.0008502,95462.0,95461.0,0.007]
[1740168154428,0.1579802,95462.0,95461.0,0.007]
[1740168154642,0.1579802,95462.0,95440.0,0.00013041]
[1740168154643,0.09184822,95462.0,95441.0,0.3214]
[1740168154844,0.0760502,95462.0,95442.0,0.10264569]
[1740168155044,0.0760502,95462.0,95461.0,0.007]
[1740168155244,0.0760502,95462.0,95461.0,0.10964569]
[1740168155623,0.0008502,95462.0,95461.0,0.11664569]
[1740168156296,0.0008502,95462.0,95461.0,0.11164569]
[1740168156446,0.0008502,95462.0,95461.0,0.25464569]
[1740168156648,0.0008502,95462.0,95461.0,0.26164569]
[1740168157061,0.0008502,95462.0,95461.0,0.25964569]
[1740168157243,0.0008502,95462.0,95461.0,0.26564569]
[1740168157889,0.0008502,95462.0,95461.0,0.27264569]
[1740168158740,0.0008502,95462.0,95461.0,0.25964569]
[1740168159039,0.0008502,95462.0,95461.0,0.26664569]
[1740168159562,1.09590304,95475.0,95462.0,0.15]
[1740168159760,1.09590304,95475.0,95464.0,0.15]
[1740168159985,1.09590304,95475.0,95465.0,0.10264569]
[1740168161447,1.09590304,95475.0,95465.0,0.10964569]
[1740168162098,1.03508029,95475.0,95466.0,0.15125685]
[1740168162306,1.03508029,95475.0,95468.0,0.15]
[1740168162548,0.10695093,95484.0,95470.0,0.15]
[1740168162752,0.10695093,95484.0,95475.0,0.15]
[1740168162951,0.10695093,95484.0,95476.0,0.10264569]
[1740168163261,1.03508029,95493.0,95476.0,0.10264569]
[1740168163617,1.04822992,95493.0,95476.0,0.10264569]
[1740168163823,1.04836042,95493.0,95476.0,0.10264569]
[1740168164024,0.0008498,95481.0,95476.0,0.10264569]
[1740168164347,0.0008498,95481.0,95477.0,0.15]
[1740168164547,0.0008498,95481.0,95480.0,0.1571]
[1740168164775,0.0008498,95481.0,95480.0,0.40974569]
[1740168165328,0.0008498,95481.0,95480.0,0.42428654]
[1740168166638,0.0008498,95481.0,95480.0,0.43128654]
[1740168167580,0.0008498,95481.0,95480.0,0.43804569]
[1740168167793,0.0008498,95481.0,95480.0,0.43104569]
[1740168168035,0.0008498,95481.0,95480.0,0.58104569]
[1740168168929,0.0008498,95481.0,95480.0,0.57404569]
[1740168169285,0.0008498,95481.0,95480.0,0.58104569]
[1740168169487,0.0008498,95481.0,95480.0,0.58804569]
[1740168169689,0.0008498,95481.0,95480.0,0.10964569]
[1740168170118,0.0008498,95481.0,95480.0,0.11664569]
[1740168170648,0.0008498,95481.0,95480.0,0.10264569]
[1740168170854,0.0008498,95481.0,95480.0,0.10964569]
[1740168171858,0.0008498,95481.0,95480.0,0.11664569]
[1740168172378,0.0008498,95481.0,95480.0,0.10264569]
[1740168172559,0.0008498,95481.0,95480.0,0.11664569]
[1740168174262,0.0008498,95481.0,95480.0,0.31664569]
[1740168174435,0.0008498,95481.0,95480.0,0.46664569]
[1740168177153,0.0008498,95481.0,95480.0,0.95968654]
[1740168177344,0.0008498,95481.0,95480.0,1.52268654]
[1740168177956,0.0008498,95481.0,95480.0,1.54268654]
[1740168178341,0.0008498,95481.0,95480.0,1.50868654]
[1740168178546,0.0008498,95481.0,95480.0,1.48868654]
[1740168178745,0.0008498,95481.0,95480.0,1.51568654]
[1740168178964,0.0008498,95481.0,95480.0,1.48868654]
[1740168179167,0.0008498,95481.0,95480.0,1.49568654]
[1740168179385,0.0008498,95481.0,95480.0,1.50268654]
[1740168179590,0.0008498,95481.0,95480.0,1.49568654]
[1740168179786,0.0008498,95481.0,95480.0,1.50268654]
[1740168180043,0.0008498,95481.0,95480.0,1.50968654]
[1740168180265,0.0008498,95481.0,95480.0,1.48868654]
[1740168180464,0.0008498,95481.0,95480.0,0.93114569]
[1740168181485,0.0008498,95481.0,95480.0,0.93814569]
[1740168181692,0.0008498,95481.0,95480.0,0.94514569]
[1740168181894,0.0008498,95481.0,95480.0,0.63804569]
[1740168182101,0.0752576,95504.0,95480.0,0.63804569]
[1740168182306,0.157096,95483.0,95481.0,0.10264569]
[1740168182522,0.00157087,95496.0,95481.0,0.10264569]
[1740168182747,0.08377358,95499.0,95481.0,0.10264569]
[1740168182952,0.0752576,95504.0,95481.0,0.10264569]
[1740168183166,0.0752576,95504.0,95490.0,0.25308974]
[1740168183365,0.0752576,95504.0,95491.0,0.15125643]
[1740168183569,0.00773634,95525.0,95497.0,0.15]
[1740168183780,0.00773634,95525.0,95499.0,0.15]
[1740168183981,0.17587937,95528.0,95501.0,0.15]
[1740168184181,0.11078663,95512.0,95503.0,0.15]
[1740168184386,0.11078663,95512.0,95505.0,0.15]
[1740168184589,0.11078663,95512.0,95506.0,0.10264569]
[1740168185632,0.11078663,95512.0,95506.0,0.10964569]
[1740168185844,0.11078663,95512.0,95506.0,0.11664569]
[1740168186240,0.11078663,95512.0,95506.0,0.10264569]
[1740168186382,0.11078663,95512.0,95506.0,0.10964569]
[1740168186591,0.11078663,95512.0,95506.0,0.11664569]
[1740168187578,0.11078663,95512.0,95510.0,0.15705]
[1740168187799,0.11078663,95512.0,95511.0,0.40969469]
[1740168188637,0.11078663,95512.0,95511.0,0.73109469]
[1740168188810,0.156996,95544.0,95512.0,0.209396]
[1740168189013,0.00043519,95536.0,95514.0,0.209393]
[1740168189217,0.00043519,95536.0,95512.0,0.3214]
[1740168189218,0.00043519,95536.0,95515.0,0.10390179]
[1740168190620,0.00043519,95536.0,95522.0,0.157031]
[1740168190824,0.00043519,95536.0,95523.0,0.10390175]
[1740168191235,0.00043519,95536.0,95523.0,0.10264569]
[1740168191456,0.00043519,95536.0,95512.0,0.3214]
[1740168191668,0.00043519,95536.0,95515.0,0.002]
[1740168191784,0.00043519,95536.0,95522.0,0.10264569]
[1740168192205,0.00043519,95536.0,95523.0,0.004]
[1740168192423,0.00043519,95536.0,95524.0,0.10264569]
[1740168193895,0.00043519,95536.0,95525.0,0.15125604]
[1740168194168,0.00043519,95536.0,95535.0,0.25264569]
[1740168194409,0.00043519,95536.0,95535.0,0.68504068]
[1740168194632,0.00043519,95536.0,95535.0,0.6012671]
[1740168194861,0.00043519,95536.0,95535.0,0.58858654]
[1740168195577,0.00043519,95536.0,95535.0,0.59558654]
[1740168196530,0.00043519,95536.0,95535.0,1.25459761]
[1740168197219,0.00043519,95536.0,95535.0,1.38499761]
[1740168197442,0.00043519,95536.0,95535.0,1.39199761]
[1740168197677,0.00043519,95536.0,95535.0,1.39899761]
[1740168197934,0.00043519,95536.0,95535.0,1.37199761]
[1740168198181,0.00043519,95536.0,95535.0,1.39899761]
[1740168198389,0.00043519,95536.0,95535.0,1.38499761]
[1740168198603,0.00043519,95536.0,95535.0,1.37799761]
[1740168198832,0.00043519,95536.0,95535.0,1.23459761]
[1740168199317,0.00043519,95536.0,95535.0,1.00082403]
[1740168199563,0.00043519,95536.0,95535.0,1.15783403]
[1740168199786,0.00043519,95536.0,95535.0,1.14559654]
[1740168200047,0.00043519,95536.0,95535.0,1.18559654]
[1740168200288,0.00043519,95536.0,95535.0,1.33559654]
[1740168200546,0.00043519,95536.0,95535.0,1.34259654]
[1740168200747,0.00043519,95536.0,95535.0,1.33559654]
[1740168200958,0.00043519,95536.0,95535.0,1.34259654]
[1740168201154,0.00128479,95536.0,95535.0,1.34822718]
[1740168201565,7.9e-07,95536.0,95535.0,1.48622718]
[1740168201803,0.0008503,95559.0,95557.0,0.306974]
[1740168202045,0.00098077,95558.0,95557.0,1.41233412]
[1740168202678,0.00098077,95558.0,95557.0,1.42012157]
[1740168203198,0.00098077,95558.0,95557.0,1.44792854]
[1740168204189,0.00098077,95558.0,95557.0,1.30856054]
[1740168204411,0.0009075,95558.0,95557.0,1.13856054]
[1740168205037,0.0009075,95558.0,95557.0,1.30256054]
[1740168205268,0.0009075,95558.0,95557.0,1.29556054]
[1740168205492,0.0009075,95558.0,95557.0,1.28856054]
[1740168205697,0.0009075,95558.0,95557.0,1.30256054]
[1740168206976,0.0009075,95558.0,95557.0,1.29556054]
[1740168207182,0.0009075,95558.0,95557.0,1.30256054]
[1740168207462,0.0009075,95558.0,95557.0,1.29556054]
[1740168208142,0.0009075,95558.0,95557.0,1.28856054]
[1740168208329,0.0009075,95558.0,95557.0,1.30256054]
[1740168208749,0.0009075,95558.0,95557.0,1.32856054]
[1740168208866,0.0008501,95580.0,95561.0,0.4973921]
[1740168209071,0.0008501,95580.0,95568.0,0.42414254]
[1740168210350,0.0008501,95580.0,95568.0,0.48100022]
[1740168210562,0.0008501,95580.0,95568.0,0.45319325]
[1740168210769,0.0008501,95580.0,95568.0,1.33759325]
[1740168210981,0.0008501,95580.0,95568.0,1.39240022]
[1740168211393,1e-06,95569.0,95568.0,1.37806427]
[1740168211656,1e-06,95569.0,95568.0,1.40472947]
[1740168211806,1e-06,95569.0,95568.0,1.39072947]
[1740168212026,1e-06,95569.0,95568.0,1.37106427]
[1740168212245,1e-06,95569.0,95568.0,1.37806427]
[1740168213260,1e-06,95569.0,95568.0,1.57806427]
[1740168213505,1e-06,95569.0,95568.0,1.56406427]
[1740168213718,1e-06,95569.0,95568.0,1.57106427]
[1740168213961,1e-06,95569.0,95568.0,1.58762427]
[1740168214099,1e-06,95569.0,95568.0,1.5328173]
[1740168214320,1e-06,95569.0,95568.0,1.57106427]
[1740168214498,1e-06,95569.0,95568.0,1.50254254]
[1740168214700,1e-06,95569.0,95568.0,1.33800169]
[1740168214924,1e-06,95569.0,95568.0,1.35894904]
[1740168215141,1e-06,95569.0,95568.0,1.34494904]
[1740168215355,1e-06,95569.0,95568.0,1.50194904]
[1740168215520,1e-06,95569.0,95568.0,1.50894904]
[1740168216206,1e-06,95569.0,95568.0,0.94500169]
[1740168216554,1e-06,95569.0,95568.0,0.95254254]
[1740168216762,1e-06,95569.0,95568.0,0.94554254]
[1740168217167,1e-06,95569.0,95568.0,0.63104569]
[1740168217567,1e-06,95569.0,95568.0,0.78800169]
[1740168217774,1e-06,95569.0,95568.0,0.95954254]
[1740168217979,1e-06,95569.0,95568.0,0.80254254]
[1740168218182,1e-06,95569.0,95568.0,0.80954254]
[1740168218589,1e-06,95569.0,95568.0,0.95954254]
[1740168219969,1e-06,95569.0,95568.0,0.78804569]
[1740168220182,1e-06,95569.0,95568.0,0.94500169]
[1740168221159,1e-06,95569.0,95568.0,0.78804569]
[1740168221742,1e-06,95569.0,95568.0,0.63804569]
[1740168222277,1.06197183,95583.0,95568.0,0.63804569]
[1740168222456,1.06197183,95583.0,95568.0,0.31664569]
[1740168222796,0.0808,95584.0,95568.0,0.31664569]
[1740168222797,0.0808,95584.0,95570.0,0.25308974]
[1740168222998,0.0008503,95592.0,95584.0,0.15]
[1740168223217,0.00098048,95589.0,95585.0,0.10390093]
[1740168223423,0.00098048,95589.0,95588.0,0.15]
[1740168223635,0.00098048,95589.0,95588.0,0.25264569]
[1740168224084,0.00098048,95589.0,95588.0,0.40956869]
[1740168224465,0.00098048,95589.0,95588.0,0.73096869]
[1740168224663,0.00098048,95589.0,95588.0,0.75250954]